Workbook

Sheet Modelo_Glover
B1: Análise da Deplepleção de Um Rio Pelo Bombeamento de Um Poço (GLOVER)
B3: Parâmetros Para Modelagem Glover - INSERIR DADOS
B4: Transmissividade (T) | E4: 1100 | F4: (m2/dia)
B5: Porosidade Eficaz (Sy) | E5: 0.2
B6: Distância de Separação (L) | E6: 3500 | F6: (m)
D7: Volume Bombeado do Poço | E7: 200 | F7: (l/s)
B8: Horas por Dia | E8: 24 | F8: (h)
B9: Dias por Período de Bombeamento | E9: 7 | F9: (dias)
B10: Período de Bombeamento | E10: 7 | F10: (dias)
B11: Tempo de Corte | E11: 365 | F11: (dias)
B12: Bombeamento Após o Corte | E12: 0 | F12: (l/s)
B13: Duração do Bombeamento | E13: 365 | F13: (dias)
B15: Parâmetros Calculados - CÁLCULO AUTOMÁTICO
B16: Fator de Depleção da Drenagem (SDF) | E16: =_l^2*S/T -> 2227.272727 | F16: (dias)
B17: Taxa Média | E17: =Qmax*(Hrs/24)*(Dias/Retorno) -> 200 | F17: (l/s)
B19: Depleção na Drenagem - Resultado da Modelagem
B20: Depleção na Drenagem | E20: =(Qavg*(ERFC(SQRT(SDF/(4*Time)))))/(Qmax/100) -> 8.068453974 | F20: %

Sheet Calculos
A1: Tempo | B1: Glover | C1: CompensaçãoGlover | D1: Glover Corrigido
A2: 0 | B2: 0 | C2: 0 | D2: =+B2-C2 -> 0
A3: =A2+1 -> 1 | B3: =Qavg*(ERFC(SQRT(SDF/(4*A3)))) -> 7.180347473e-242 | C3: =IF(CutBackTime<A3,(Qavg-CutBackQ)*((ERFC(SQRT(SDF/(4*OFFSET(A3,-CutBackTime,0)))))),0) -> 0 | D3: 7.180347473e-242
A4: 2 | B4: 8.275704472e-121 | C4: 0 | D4: 8.275704472e-121
A5: 3 | B5: 2.038491449e-80 | C5: 0 | D5: 2.038491449e-80
A6: 4 | B6: 3.336693035e-60 | C6: 0 | D6: 3.336693035e-60
A7: 5 | B7: 4.597715807e-48 | C7: 0 | D7: 4.597715807e-48
A8: 6 | B8: 5.787897794e-40 | C8: 0 | D8: 5.787897794e-40
A9: 7 | B9: 3.575256285e-34 | C9: 0 | D9: 3.575256285e-34
A10: 8 | B10: 7.946843959e-30 | C10: 0 | D10: 7.946843959e-30
A11: 9 | B11: 1.923307519e-26 | C11: 0 | D11: 1.923307519e-26
A12: 10 | B12: 9.850904025e-24 | C12: 0 | D12: 9.850904025e-24
A13: 11 | B13: 1.630013293e-21 | C13: 0 | D13: 1.630013293e-21
A14: 12 | B14: 1.155332758e-19 | C14: 0 | D14: 1.155332758e-19
A15: 13 | B15: 4.264481621e-18 | C15: 0 | D15: 4.264481621e-18
A16: 14 | B16: 9.425154861e-17 | C16: 0 | D16: 9.425154861e-17
A17: 15 | B17: 1.381789006e-15 | C17: 0 | D17: 1.381789006e-15
A18: 16 | B18: 1.451065041e-14 | C18: 0 | D18: 1.451065041e-14
A19: 17 | B19: 1.157558257e-13 | C19: 0 | D19: 1.157558257e-13
A20: 18 | B20: 7.342833014e-13 | C20: 0 | D20: 7.342833014e-13
A21: 19 | B21: 3.839972764e-12 | C21: 0 | D21: 3.839972764e-12
A22: 20 | B22: 1.704053329e-11 | C22: 0 | D22: 1.704053329e-11
A23: 21 | B23: 6.568841274e-11 | C23: 0 | D23: 6.568841274e-11
A24: 22 | B24: 2.242126479e-10 | C24: 0 | D24: 2.242126479e-10
A25: 23 | B25: 6.884435425e-10 | C25: 0 | D25: 6.884435425e-10
A26: 24 | B26: 1.92681972e-09 | C26: 0 | D26: 1.92681972e-09
A27: 25 | B27: 4.970396293e-09 | C27: 0 | D27: 4.970396293e-09
A28: 26 | B28: 1.192865805e-08 | C28: 0 | D28: 1.192865805e-08
A29: 27 | B29: 2.684811575e-08 | C29: 0 | D29: 2.684811575e-08
A30: 28 | B30: 5.706025662e-08 | C30: 0 | D30: 5.706025662e-08
A31: 29 | B31: 1.151907554e-07 | C31: 0 | D31: 1.151907554e-07
A32: 30 | B32: 2.220190927e-07 | C32: 0 | D32: 2.220190927e-07
A33: 31 | B33: 4.103837085e-07 | C33: 0 | D33: 4.103837085e-07
A34: 32 | B34: 7.303205228e-07 | C34: 0 | D34: 7.303205228e-07
A35: 33 | B35: 1.255601485e-06 | C35: 0 | D35: 1.255601485e-06
A36: 34 | B36: 2.091805578e-06 | C36: 0 | D36: 2.091805578e-06
A37: 35 | B37: 3.386009452e-06 | C37: 0 | D37: 3.386009452e-06
A38: 36 | B38: 5.338131568e-06 | C38: 0 | D38: 5.338131568e-06
A39: 37 | B39: 8.213905823e-06 | C39: 0 | D39: 8.213905823e-06
A40: 38 | B40: 1.235940177e-05 | C40: 0 | D40: 1.235940177e-05
A41: 39 | B41: 1.821695209e-05 | C41: 0 | D41: 1.821695209e-05
A42: 40 | B42: 2.634229678e-05 | C42: 0 | D42: 2.634229678e-05
A43: 41 | B43: 3.742271014e-05 | C43: 0 | D43: 3.742271014e-05
A44: 42 | B44: 5.229584238e-05 | C44: 0 | D44: 5.229584238e-05
A45: 43 | B45: 7.196898356e-05 | C45: 0 | D45: 7.196898356e-05
A46: 44 | B46: 9.763844385e-05 | C46: 0 | D46: 9.763844385e-05
A47: 45 | B47: 0.0001307087407 | C47: 0 | D47: 0.0001307087407
A48: 46 | B48: 0.0001728112891 | C48: 0 | D48: 0.0001728112891
A49: 47 | B49: 0.0002258223047 | C49: 0 | D49: 0.0002258223047
A50: 48 | B50: 0.0002918796515 | C50: 0 | D50: 0.0002918796515
A51: 49 | B51: 0.0003733983911 | C51: 0 | D51: 0.0003733983911
A52: 50 | B52: 0.0004730848211 | C52: 0 | D52: 0.0004730848211
A53: 51 | B53: 0.0005939488256 | C53: 0 | D53: 0.0005939488256
A54: 52 | B54: 0.0007393143913 | C54: 0 | D54: 0.0007393143913
A55: 53 | B55: 0.0009128281832 | C55: 0 | D55: 0.0009128281832
A56: 54 | B56: 0.001118466103 | C56: 0 | D56: 0.001118466103
A57: 55 | B57: 0.001360537791 | C57: 0 | D57: 0.001360537791
A58: 56 | B58: 0.001643689058 | C58: 0 | D58: 0.001643689058
A59: 57 | B59: 0.001972902271 | C59: 0 | D59: 0.001972902271
A60: 58 | B60: 0.002353494729 | C60: 0 | D60: 0.002353494729
A61: 59 | B61: 0.002791115103 | C61: 0 | D61: 0.002791115103
A62: 60 | B62: 0.003291738012 | C62: 0 | D62: 0.003291738012
A63: 61 | B63: 0.003861656859 | C63: 0 | D63: 0.003861656859
A64: 62 | B64: 0.004507475018 | C64: 0 | D64: 0.004507475018
A65: 63 | B65: 0.005236095508 | C65: 0 | D65: 0.005236095508
A66: 64 | B66: 0.006054709292 | C66: 0 | D66: =+B66-C66 -> 0.006054709292
A67: =A66+1 -> 65 | B67: =Qavg*(ERFC(SQRT(SDF/(4*A67)))) -> 0.006970782321 | C67: =IF(CutBackTime<A67,(Qavg-CutBackQ)*((ERFC(SQRT(SDF/(4*OFFSET(A67,-CutBackTime,0)))))),0) -> 0 | D67: 0.006970782321
A68: 66 | B68: 0.007992041481 | C68: 0 | D68: 0.007992041481
A69: 67 | B69: 0.009126459569 | C69: 0 | D69: 0.009126459569
A70: 68 | B70: 0.01038223945 | C70: 0 | D70: 0.01038223945
A71: 69 | B71: 0.0117677975 | C71: 0 | D71: 0.0117677975
A72: 70 | B72: 0.01329174653 | C72: 0 | D72: 0.01329174653
A73: 71 | B73: 0.01496287826 | C73: 0 | D73: 0.01496287826
A74: 72 | B74: 0.01679014544 | C74: 0 | D74: 0.01679014544
A75: 73 | B75: 0.01878264386 | C75: 0 | D75: 0.01878264386
A76: 74 | B76: 0.0209495942 | C76: 0 | D76: 0.0209495942
A77: 75 | B77: 0.0233003239 | C77: 0 | D77: 0.0233003239
A78: 76 | B78: 0.02584424919 | C78: 0 | D78: 0.02584424919
A79: 77 | B79: 0.02859085721 | C79: 0 | D79: 0.02859085721
A80: 78 | B80: 0.03154968845 | C80: 0 | D80: 0.03154968845
A81: 79 | B81: 0.03473031957 | C81: 0 | D81: 0.03473031957
A82: 80 | B82: 0.03814234646 | C82: 0 | D82: 0.03814234646
A83: 81 | B83: 0.04179536791 | C83: 0 | D83: 0.04179536791
A84: 82 | B84: 0.04569896969 | C84: 0 | D84: 0.04569896969
A85: 83 | B85: 0.04986270915 | C85: 0 | D85: 0.04986270915
A86: 84 | B86: 0.05429610041 | C86: 0 | D86: 0.05429610041
A87: 85 | B87: 0.05900860017 | C87: 0 | D87: 0.05900860017
A88: 86 | B88: 0.0640095941 | C88: 0 | D88: 0.0640095941
A89: 87 | B89: 0.06930838386 | C89: 0 | D89: 0.06930838386
A90: 88 | B90: 0.0749141748 | C90: 0 | D90: 0.0749141748
A91: 89 | B91: 0.08083606431 | C91: 0 | D91: 0.08083606431
A92: 90 | B92: 0.08708303076 | C92: 0 | D92: 0.08708303076
A93: 91 | B93: 0.09366392324 | C93: 0 | D93: 0.09366392324
A94: 92 | B94: 0.1005874518 | C94: 0 | D94: 0.1005874518
A95: 93 | B95: 0.1078621785 | C95: 0 | D95: 0.1078621785
A96: 94 | B96: 0.115496509 | C96: 0 | D96: 0.115496509
A97: 95 | B97: 0.1234986847 | C97: 0 | D97: 0.1234986847
A98: 96 | B98: 0.1318767757 | C98: 0 | D98: 0.1318767757
A99: 97 | B99: 0.1406386745 | C99: 0 | D99: 0.1406386745
A100: 98 | B100: 0.1497920895 | C100: 0 | D100: 0.1497920895
A101: 99 | B101: 0.1593445404 | C101: 0 | D101: 0.1593445404
A102: 100 | B102: 0.1693033526 | C102: 0 | D102: 0.1693033526
A103: 101 | B103: 0.1796756536 | C103: 0 | D103: 0.1796756536
A104: 102 | B104: 0.1904683691 | C104: 0 | D104: 0.1904683691
A105: 103 | B105: 0.2016882195 | C105: 0 | D105: 0.2016882195
A106: 104 | B106: 0.2133417175 | C106: 0 | D106: 0.2133417175
A107: 105 | B107: 0.2254351653 | C107: 0 | D107: 0.2254351653
A108: 106 | B108: 0.2379746536 | C108: 0 | D108: 0.2379746536
A109: 107 | B109: 0.2509660592 | C109: 0 | D109: 0.2509660592
A110: 108 | B110: 0.2644150447 | C110: 0 | D110: 0.2644150447
A111: 109 | B111: 0.2783270573 | C111: 0 | D111: 0.2783270573
A112: 110 | B112: 0.292707329 | C112: 0 | D112: 0.292707329
A113: 111 | B113: 0.3075608761 | C113: 0 | D113: 0.3075608761
A114: 112 | B114: 0.3228925001 | C114: 0 | D114: 0.3228925001
A115: 113 | B115: 0.338706788 | C115: 0 | D115: 0.338706788
A116: 114 | B116: 0.3550081131 | C116: 0 | D116: 0.3550081131
A117: 115 | B117: 0.3718006366 | C117: 0 | D117: 0.3718006366
A118: 116 | B118: 0.389088309 | C118: 0 | D118: 0.389088309
A119: 117 | B119: 0.4068748713 | C119: 0 | D119: 0.4068748713
A120: 118 | B120: 0.4251638573 | C120: 0 | D120: 0.4251638573
A121: 119 | B121: 0.4439585958 | C121: 0 | D121: 0.4439585958
A122: 120 | B122: 0.4632622123 | C122: 0 | D122: 0.4632622123
A123: 121 | B123: 0.4830776322 | C123: 0 | D123: 0.4830776322
A124: 122 | B124: 0.5034075825 | C124: 0 | D124: 0.5034075825
A125: 123 | B125: 0.5242545953 | C125: 0 | D125: 0.5242545953
A126: 124 | B126: 0.5456210103 | C126: 0 | D126: 0.5456210103
A127: 125 | B127: 0.5675089778 | C127: 0 | D127: 0.5675089778
A128: 126 | B128: 0.5899204615 | C128: 0 | D128: 0.5899204615
A129: 127 | B129: 0.6128572423 | C129: 0 | D129: 0.6128572423
A130: 128 | B130: 0.6363209211 | C130: 0 | D130: =+B130-C130 -> 0.6363209211
A131: =A130+1 -> 129 | B131: =Qavg*(ERFC(SQRT(SDF/(4*A131)))) -> 0.6603129219 | C131: =IF(CutBackTime<A131,(Qavg-CutBackQ)*((ERFC(SQRT(SDF/(4*OFFSET(A131,-CutBackTime,0)))))),0) -> 0 | D131: 0.6603129219
A132: 130 | B132: 0.6848344958 | C132: 0 | D132: 0.6848344958
A133: 131 | B133: 0.709886724 | C133: 0 | D133: 0.709886724
A134: 132 | B134: 0.7354705213 | C134: 0 | D134: 0.7354705213
A135: 133 | B135: 0.7615866398 | C135: 0 | D135: 0.7615866398
A136: 134 | B136: 0.7882356721 | C136: 0 | D136: 0.7882356721
A137: 135 | B137: 0.8154180554 | C137: 0 | D137: 0.8154180554
A138: 136 | B138: 0.8431340745 | C138: 0 | D138: 0.8431340745
A139: 137 | B139: 0.8713838657 | C139: 0 | D139: 0.8713838657
A140: 138 | B140: 0.9001674206 | C140: 0 | D140: 0.9001674206
A141: 139 | B141: 0.9294845892 | C141: 0 | D141: 0.9294845892
A142: 140 | B142: 0.9593350838 | C142: 0 | D142: 0.9593350838
A143: 141 | B143: 0.9897184824 | C143: 0 | D143: 0.9897184824
A144: 142 | B144: 1.020634232 | C144: 0 | D144: 1.020634232
A145: 143 | B145: 1.052081654 | C145: 0 | D145: 1.052081654
A146: 144 | B146: 1.084059945 | C146: 0 | D146: 1.084059945
A147: 145 | B147: 1.116568181 | C147: 0 | D147: 1.116568181
A148: 146 | B148: 1.149605322 | C148: 0 | D148: 1.149605322
A149: 147 | B149: 1.183170215 | C149: 0 | D149: 1.183170215
A150: 148 | B150: 1.217261597 | C150: 0 | D150: 1.217261597
A151: 149 | B151: 1.251878098 | C151: 0 | D151: 1.251878098
A152: 150 | B152: 1.287018246 | C152: 0 | D152: 1.287018246
A153: 151 | B153: 1.322680468 | C153: 0 | D153: 1.322680468
A154: 152 | B154: 1.358863095 | C154: 0 | D154: 1.358863095
A155: 153 | B155: 1.395564364 | C155: 0 | D155: 1.395564364
A156: 154 | B156: 1.432782421 | C156: 0 | D156: 1.432782421
A157: 155 | B157: 1.470515326 | C157: 0 | D157: 1.470515326
A158: 156 | B158: 1.508761054 | C158: 0 | D158: 1.508761054
A159: 157 | B159: 1.547517499 | C159: 0 | D159: 1.547517499
A160: 158 | B160: 1.586782476 | C160: 0 | D160: 1.586782476
A161: 159 | B161: 1.626553726 | C161: 0 | D161: 1.626553726
A162: 160 | B162: 1.666828916 | C162: 0 | D162: 1.666828916
A163: 161 | B163: 1.707605642 | C163: 0 | D163: 1.707605642
A164: 162 | B164: 1.748881435 | C164: 0 | D164: 1.748881435
A165: 163 | B165: 1.790653761 | C165: 0 | D165: 1.790653761
A166: 164 | B166: 1.832920024 | C166: 0 | D166: 1.832920024
A167: 165 | B167: 1.875677567 | C167: 0 | D167: 1.875677567
A168: 166 | B168: 1.918923678 | C168: 0 | D168: 1.918923678
A169: 167 | B169: 1.96265559 | C169: 0 | D169: 1.96265559
A170: 168 | B170: 2.006870484 | C170: 0 | D170: 2.006870484
A171: 169 | B171: 2.051565491 | C171: 0 | D171: 2.051565491
A172: 170 | B172: 2.096737695 | C172: 0 | D172: 2.096737695
A173: 171 | B173: 2.142384135 | C173: 0 | D173: 2.142384135
A174: 172 | B174: 2.188501805 | C174: 0 | D174: 2.188501805
A175: 173 | B175: 2.235087661 | C175: 0 | D175: 2.235087661
A176: 174 | B176: 2.282138619 | C176: 0 | D176: 2.282138619
A177: 175 | B177: 2.329651558 | C177: 0 | D177: 2.329651558
A178: 176 | B178: 2.377623321 | C178: 0 | D178: 2.377623321
A179: 177 | B179: 2.426050721 | C179: 0 | D179: 2.426050721
A180: 178 | B180: 2.474930538 | C180: 0 | D180: 2.474930538
A181: 179 | B181: 2.524259522 | C181: 0 | D181: 2.524259522
A182: 180 | B182: 2.574034398 | C182: 0 | D182: 2.574034398
A183: 181 | B183: 2.624251863 | C183: 0 | D183: 2.624251863
A184: 182 | B184: 2.674908592 | C184: 0 | D184: 2.674908592
A185: 183 | B185: 2.726001237 | C185: 0 | D185: 2.726001237
A186: 184 | B186: 2.777526428 | C186: 0 | D186: 2.777526428
A187: 185 | B187: 2.829480777 | C187: 0 | D187: 2.829480777
A188: 186 | B188: 2.881860878 | C188: 0 | D188: 2.881860878
A189: 187 | B189: 2.93466331 | C189: 0 | D189: 2.93466331
A190: 188 | B190: 2.987884634 | C190: 0 | D190: 2.987884634
A191: 189 | B191: 3.0415214 | C191: 0 | D191: 3.0415214
A192: 190 | B192: 3.095570146 | C192: 0 | D192: 3.095570146
A193: 191 | B193: 3.150027399 | C193: 0 | D193: 3.150027399
A194: 192 | B194: 3.204889675 | C194: 0 | D194: =+B194-C194 -> 3.204889675
A195: =A194+1 -> 193 | B195: =Qavg*(ERFC(SQRT(SDF/(4*A195)))) -> 3.260153483 | C195: =IF(CutBackTime<A195,(Qavg-CutBackQ)*((ERFC(SQRT(SDF/(4*OFFSET(A195,-CutBackTime,0)))))),0) -> 0 | D195: 3.260153483
A196: 194 | B196: 3.315815325 | C196: 0 | D196: 3.315815325
A197: 195 | B197: 3.371871697 | C197: 0 | D197: 3.371871697
A198: 196 | B198: 3.428319088 | C198: 0 | D198: 3.428319088
A199: 197 | B199: 3.485153987 | C199: 0 | D199: 3.485153987
A200: 198 | B200: 3.542372876 | C200: 0 | D200: 3.542372876
... 167 more rows
